Cogmind - Beta 17.1 @@@ ROGUE MODE // 2026.09.17 @ 17:19:46 Player: the Result: Destroyed by D-53 Grenadier with Mini Grenade Launcher Performance ------------- Evolutions (0) 0 Regions Visited (4) 800 Robots Destroyed (61) 305 Value Destroyed (992) 992 Prototype IDs (0) 0 Alien Tech Used (0) 0 Bonus (-42) -42 TOTAL SCORE: 2055 Bonus ------- Follower Combat Kills 143 Friendly Fire -185 Cogmind --------- Core Integrity 0/250 Matter 300/300 Energy 40/100 System Corruption 0% Temperature Cool (0) Movement Treading (240) Ox1 Location -9/Mines Parts ------- > --- POWER (1) -------- (None) > --- PROPULSION (2) --- Light Treads > --- UTILITY (2) ------ Large Storage Unit > --- WEAPON (2) ------- Beamcaster > --- INVENTORY (15) --- Light Treads High-capacity Storage Unit Machine Analyzer Seismic Detector Hacking Suite Heavy Assault Rifle Autogun Autogun Autogun Grenade Launcher Grenade Launcher Hammer Peak State ------------ > --- POWER ------------ Light Ion Engine > --- PROPULSION ------- Light Treads Light Treads > --- UTILITY ---------- Large Storage Unit Seismic Detector > --- WEAPON ----------- Beamcaster Beamcaster > --- INVENTORY -------- Light Treads Light Treads Light Treads High-capacity Storage Unit Machine Analyzer Seismic Detector Hacking Suite Heavy Assault Rifle Autogun Autogun Autogun Grenade Launcher Grenade Launcher Hammer [Rating: 17] Favorites ----------- Power Ion Engine Engine Ion Engine Propulsion Light Treads Treads Light Treads Utility Seismic Detector Device Seismic Detector Storage Large Storage Unit Weapon Autogun Energy Gun Small Laser Energy Cannon Particle Cannon Ballistic Gun Autogun Launcher Grenade Launcher Special Weapon Mining Laser Build | -11 -10 -10 -10 -9 ------- Run | Yrd Mat Min Exi Min Slots Evolved . | . . . . . Power . | . . . . . Propulsion . | . . . . . Utility . | . . . . . Weapon . | . . . . . Parts Attached 25 | 7 10 2 1 5 Power 3 | 1 1 . . 1 Engine 3 | 1 1 . . 1 Core . | . . . . . Reactor . | . . . . . Propulsion 7 | 2 1 2 . 2 Treads 7 | 2 1 2 . 2 Leg . | . . . . . Wheel . | . . . . . Hover . | . . . . . Flight . | . . . . . Utility 5 | 2 2 . 1 . Device 2 | 1 1 . . . Storage 3 | 1 1 . 1 . Processor . | . . . . . Hackware . | . . . . . Protection . | . . . . . Artifact . | . . . . . Weapon 10 | 2 6 . . 2 Energy Gun 4 | 2 . . . 2 Energy Cannon 1 | . 1 . . . Ballistic Gun 2 | . 2 . . . Ballistic Cannon . | . . . . . Launcher 2 | . 2 . . . Special Weapon 1 | . 1 . . . Impact Weapon . | . . . . . Slashing Weapon . | . . . . . Piercing Weapon . | . . . . . Special Melee Weapon . | . . . . . Unidentified Prototypes . | . . . . . Parts Lost 8 | . . . . 8 Power 2 | . . . . 2 Propulsion 3 | . . . . 3 Utility 1 | . . . . 1 Weapon 2 | . . . . 2 Highest Loss Streak 8 | . . . . 8 To Critical Strikes . | . . . . . Average Backups 13 | 3 12 15 15 14 Power . | 1 . . . . Propulsion 2 | 1 1 3 3 2 Utility 3 | . 2 4 4 4 Weapon 7 | . 7 8 8 7 Tool/Special . | . . . . . Unused Backups 12 | . 2 2 . 8 Power . | . . . . . Propulsion . | . . . . . Utility 5 | . 1 . . 4 Weapon 7 | . 1 2 . 4 Tool/Special . | . . . . . Average Slot Usage (%) 99 | . 100 100 100 85 Engine 13 | . 14 14 14 4 Treads 28 | . 28 28 28 28 Device 13 | . 14 14 14 11 Storage 14 | . 14 14 14 14 Energy Gun 2 | . 3 . . 11 Ballistic Gun 24 | . 21 26 28 14 Launcher 1 | . 2 1 . . Peak Build Rating 17 | 7 11 12 12 17 Average Rating 10 | 2 10 11 12 13 On Entrance 8 | . 7 11 12 12 Avg Prop Armor Cover (%) . | . . . . . Naked Turns . | . . . . . Heaviest Build 32 | 13 32 32 32 32 Greatest Support 40 | 40 40 40 40 40 Greatest Overweight (x) 1 | . . . . 1 Average Overweight (x) . | . . . . . Largest Inventory Capacity 15 | 8 15 15 15 15 Average Capacity 14 | 5 14 15 15 15 Most Carried 15 | 5 15 15 15 15 Average Carried 13 | 3 12 14 15 14 Final Capacity 15 | 8 15 15 15 15 Final Carried 15 | 3 15 15 15 12 Class Distribution -------------------- 100% | Mutant Dominant Class ---------------- Mutant | -10/Materials Mutant | -10/Mines Mutant | -10/Exiles Mutant | -9/Mines Resources | -11 -10 -10 -10 -9 ----------- Run | Yrd Mat Min Exi Min Matter Collected 1607 | 238 898 426 . 45 Remotely . | . . . . . Salvage Created 1977 | 155 1207 558 . 57 Parts 114 | 12 72 30 . . Haulers Intercepted 2 | . 2 . . . Recyclers Shooed 4 | . 3 1 . . Parts Field Recycled . | . . . . . Retrieved Matter . | . . . . . Parts Self-Destructed . | . . . . . Prevented . | . . . . . Parts Restored . | . . . . . Kills | -11 -10 -10 -10 -9 ------- Run | Yrd Mat Min Exi Min Combat Hostiles Destroyed 28 | . 15 9 . 4 Guns 14 | . 6 4 . 4 AOE 14 | . 9 5 . . Classes Destroyed 13 | 2 8 2 . 1 Worker 7 | . 6 1 . . Builder 4 | . 2 2 . . Tunneler 7 | 5 1 1 . . Hauler 2 | . 2 . . . Recycler 9 | 1 6 2 . . Mechanic 1 | . 1 . . . Operator 2 | . 2 . . . Watcher 3 | . 3 . . . Swarmer 6 | . 3 3 . . Grunt 17 | . 12 5 . . Sentry 1 | . . 1 . . Zionite 1 | . . 1 . . Assembled 4 | . . . . 4 Thug 1 | . . 1 . . Best Kill Streak 8 | 6 8 6 . 4 Combat Bots Only 5 | . 3 5 . 4 Max Kills in Single Turn 4 | 1 4 2 . 1 Gunslinging . | . . . . . Exploded 2 | . 2 2 . . Melee . | . . . . . Uniques/NPCs Destroyed . | . . . . . Combat | -11 -10 -10 -10 -9 -------- Run | Yrd Mat Min Exi Min Hostile Shots Fired 90 | . 29 24 . 37 Missed 24 | . 12 8 . 4 Hits 66 | . 17 16 . 33 Melee 15 | . . . . 15 Projectile 51 | . 17 16 . 18 AOE 7 | . . . . 7 Critical Strikes 2 | . . 1 . 1 Part Disruptions 3 | . . . . 3 Damage Taken 1372 | . 252 241 . 879 Core 257 | . 74 32 . 151 Absorbed by Shields . | . . . . . Core Remaining (%) 100 | 100 . . . . Volleys Fired 129 | 13 74 35 . 7 Largest 2 | 2 2 2 . 2 Hottest 150 | 80 100 60 . 150 Shots Fired 253 | 26 144 70 . 13 Gun 213 | 26 118 56 . 13 Cannon . | . . . . . Launcher 36 | . 22 14 . . Special 4 | . 4 . . . Kinetic 182 | . 118 56 . 8 Thermal 35 | 26 4 . . 5 Explosive 36 | . 22 14 . . Electromagnetic . | . . . . . Robot Hit Streak 10 | 8 9 10 . 7 Robot Miss Streak 6 | 2 3 6 . 1 Penetration Max . | . . . . . Secondary Targets 2 | . 1 . . 1 Max Gunslinging Chain 1 | . 1 . . 1 Shots Hit Robots 131 | 18 72 31 . 10 Core Hits 94 | 7 58 22 . 7 Critical Kills 1 | . . 1 . . Critical Parts Destroyed 2 | . 2 . . . Critical Strikes 3 | . 2 1 . . Destroy 3 | . 2 1 . . Melee Attacks . | . . . . . Impact . | . . . . . Slashing . | . . . . . Piercing . | . . . . . Sneak Attacks . | . . . . . Combat Hostiles . | . . . . . Follow-up Attacks . | . . . . . Damage Inflicted 3350 | 197 2051 905 . 197 Guns 1938 | 197 1065 502 . 174 Cannons . | . . . . . Explosions 1321 | . 942 379 . . Melee . | . . . . . Ramming 91 | . 44 24 . 23 Kinetic 1678 | . 1065 502 . 111 Thermal 260 | 197 . . . 63 Explosive 1321 | . 942 379 . . Electromagnetic . | . . . . . Impact . | . . . . . Slashing . | . . . . . Piercing . | . . . . . Highest Corruption . | . . . . . Average Corruption . | . . . . . Corruption Purged . | . . . . . Corruption Blocked . | . . . . . Overload Shots . | . . . . . Overflow Damage 28 | . 16 12 . . Projectiles . | . . . . . Explosions 28 | . 16 12 . . Melee . | . . . . . Knockbacks 1 | . 1 . . . Impact 1 | . 1 . . . Kinetic . | . . . . . Secondary . | . . . . . Self-Inflicted Damage 81 | . 65 16 . . Shots 5 | . 4 1 . . Rammed 19 | 1 8 5 . 5 Targets Rammed 20 | 1 8 6 . 5 Kicked . | . . . . . Crushed 1 | . . 1 . . Highest Temperature 116 | 43 60 67 . 116 Average Temperature 15 | 18 10 13 . 50 Received Heat Transfer 524 | . 87 135 . 302 Siege Activations . | . . . . . Martial Activations . | . . . . . Shielding Activations . | . . . . . Robots Disrupted . | . . . . . Combat Hostiles . | . . . . . Robots Corrupted . | . . . . . Combat Hostiles . | . . . . . Parts Fried . | . . . . . Impact Corruptions . | . . . . . Robots Melted . | . . . . . Combat Hostiles . | . . . . . Parts Melted 1 | . . 1 . . Heat Transferred 561 | 450 . . . 111 Parts Sabotaged . | . . . . . Parts Stolen . | . . . . . Parts Stripped . | . . . . . Power Chain Reactions . | . . . . . Alert | -11 -10 -10 -10 -9 ------- Run | Yrd Mat Min Exi Min Maximum Alert Level 1 | . 1 . . . Low Security (%) 78 | 100 62 100 . 100 Level 1 21 | . 37 . . . Level 2 . | . . . . . Level 3 . | . . . . . Level 4 . | . . . . . Level 5 . | . . . . . High Security . | . . . . . Max Security . | . . . . . Peak Influence 284 | 15 284 170 . 21 Initial 108 | . . 108 . . Average 117 | 3 152 79 . 2 Influence Increases 1188 | 30 728 409 . 21 Destroy 0b10 Robot/C 580 | . 300 260 . 20 Destroy 0b10 Robot/NC 175 | 30 115 30 . . Destroy Leader 130 | . 90 40 . . Allied During Kill 13 | . . 12 . 1 Trap Triggered on 0b10 10 | . . 10 . . Successful Hack 4 | . 4 . . . Select Force Hacks 60 | . 60 . . . Disable Machine 45 | . 45 . . . Destroy Structure 171 | . 114 57 . . Influence Decreases 1188 | 30 450 610 77 21 Entered New Map 247 | . . 170 77 . Time Decay 920 | 30 450 440 . . Lost Part 10 | . . . . 10 Lost Ally 11 | . . . . 11 Squads Dispatched 6 | . 5 1 . . Investigation 3 | . 3 . . . Extermination . | . . . . . Reinforcement 2 | . 2 . . . Assault 1 | . . 1 . . Garrison . | . . . . . Intercept . | . . . . . Searches Triggered . | . . . . . Construction Impeded . | . . . . . Haulers Reinforced . | . . . . . Active Scanning Responses . | . . . . . Cargo Convoy Interrupts . | . . . . . Stealth | -11 -10 -10 -10 -9 --------- Run | Yrd Mat Min Exi Min Distress Signals 1 | . 1 . . . Communications Jammed . | . . . . . Distress Signals . | . . . . . Times Spotted 63 | . 21 14 . 28 Peak Tracking Total 22 | . 3 4 . 22 Tactical Retreats 2 | . . . . 2 Traps | -11 -10 -10 -10 -9 ------- Run | Yrd Mat Min Exi Min Traps Triggered 1 | . 1 . . . Indirectly . | . . . . . Trap Hack Attempts . | . . . . . Triggered . | . . . . . Disarmed . | . . . . . Reprogrammed . | . . . . . Reused 1 | . . 1 . . Traps Extracted . | . . . . . Installed 3 | . . 3 . . Triggered 1 | . . 1 . . Machines | -11 -10 -10 -10 -9 ---------- Run | Yrd Mat Min Exi Min Machines Disabled 4 | . 3 1 . . Max in Single Turn 1 | . 1 . . . Machines Repaired . | . . . . . Machines Dismantled . | . . . . . Machines Sabotaged . | . . . . . Overloaded Fab Kills . | . . . . . Hacking | -11 -10 -10 -10 -9 --------- Run | Yrd Mat Min Exi Min Machines Accessed 11 | . 7 . 4 . Terminals 5 | . 5 . . . Fabricators . | . . . . . Repair Stations . | . . . . . Recycling Units 2 | . 2 . . . Scanalyzers . | . . . . . Garrison Access . | . . . . . Total Hacks 13 | . 9 . 4 . Successful 11 | . 7 . 4 . Failed 2 | . 2 . . . Catastrophic . | . . . . . Database Lockouts . | . . . . . Manual 9 | . 9 . . . Terminals 7 | . 7 . . . Fabricators . | . . . . . Repair Stations . | . . . . . Recycling Units 2 | . 2 . . . Scanalyzers . | . . . . . Garrison Access . | . . . . . Terminal Hacks 4 | . . . 4 . Record 4 | . . . 4 . Fabricator Hacks . | . . . . . Repair Station Hacks . | . . . . . Recycling Unit Hacks . | . . . . . Scanalyzer . | . . . . . Garrison Access Hacks . | . . . . . Unauthorized Hacks 7 | . 7 . . . Terminals 5 | . 5 . . . Skim 5 | . 5 . . . Fabricators . | . . . . . Repair Stations . | . . . . . Recycling Units 2 | . 2 . . . Tunnel 2 | . 2 . . . Scanalyzers . | . . . . . Garrison Access . | . . . . . Data Cores Recovered . | . . . . . Used . | . . . . . Hacking Detections 1 | . 1 . . . Full Trace Events . | . . . . . Feedback Events . | . . . . . Feedback Blocked . | . . . . . Robot Schematics Acquired . | . . . . . Robots Built . | . . . . . Authchips . | . . . . . Time . | . . . . . Total Robot Build Rating . | . . . . . Part Schematics Acquired . | . . . . . Parts Built . | . . . . . Authchips . | . . . . . Time . | . . . . . Total Part Build Rating . | . . . . . Part Studies Acquired . | . . . . . Parts Repaired . | . . . . . Time . | . . . . . Parts Recycled . | . . . . . Recycled Matter . | . . . . . Retrieved Matter . | . . . . . Retrieved Components . | . . . . . Parts Scanalyzed . | . . . . . Part Schematics Acquired . | . . . . . Parts Damaged . | . . . . . Bothacking | -11 -10 -10 -10 -9 ------------ Run | Yrd Mat Min Exi Min Used RIF Installer . | . . . . . Robots Hacked . | . . . . . Non-combat . | . . . . . Combat . | . . . . . Robot Hacks Applied . | . . . . . Relay Couplers Released . | . . . . . Fabnet Peak Effective % . | . . . . . Robots Rewired . | . . . . . Allies Hacked . | . . . . . Hacks Repelled . | . . . . . Allies | -11 -10 -10 -10 -9 -------- Run | Yrd Mat Min Exi Min Total Allies 3 | . . 3 . . Largest Group 2 | . . 2 1 1 Highest-Rated Group 62 | . . 62 31 31 Highest-Rated Ally 31 | . . 31 31 31 Total Orders . | . . . . . Ally Attacks 22 | . . 17 . 5 Total Damage 320 | . . 255 . 65 Kills 5 | . . 4 . 1 Allies Corrupted . | . . . . . Allies Melted 1 | . . . . 1 Intel | -11 -10 -10 -10 -9 ------- Run | Yrd Mat Min Exi Min Active Infowar (turns) 3541 | 24 1716 1088 670 43 Seismic 3541 | 24 1716 1088 670 43 Robot Analysis Total . | . . . . . Derelict Logs Recovered 1 | . . 1 . . Drone Launches . | . . . . . Drone Recoveries . | . . . . . Exploration | -11 -10 -10 -10 -9 ------------- Run | Yrd Mat Min Exi Min Turns Passed 3624 | 100 1716 1088 670 50 Spaces Moved 1953 | 70 865 590 419 9 Core 61 | 61 . . . . Treads 1892 | 9 865 590 419 9 Legs . | . . . . . Wheels . | . . . . . Hover . | . . . . . Flight . | . . . . . Fastest Speed 50 | 50 160 160 160 160 Average Speed 156 | 64 160 160 160 168 Slowest Speed 240 | 160 160 160 160 240 Overloaded Moves . | . . . . . Propulsion Burnouts . | . . . . . Robots Hopped . | . . . . . Potential Cave-ins . | . . . . . Cave-ins Triggered . | . . . . . Exploration Rate (%) 57 | 4 98 90 88 8 Regions Visited 4 Branch Regions 3 Pre-discovered Areas 3 | . 3 . . . Known Exits Taken . | . . . . . Unknown Exits Taken 4 | 1 1 1 1 . Scrap Searched 1 | . . 1 . . Spaces Dug 2 | . 2 . . . Terrain Destroyed 213 | . 125 88 . . Melee . | . . . . . Projectile 4 | . 4 . . . AOE 209 | . 121 88 . . Terrain Rammed . | . . . . . Walls Destroyed . | . . . . . Machines Disabled . | . . . . . Actions | -11 -10 -10 -10 -9 --------- Run | Yrd Mat Min Exi Min Total 2278 | 97 1061 673 420 27 Wait 89 | . 64 24 . 1 Move 1950 | 70 864 589 418 9 Hop . | . . . . . Pick Up 31 | 7 20 4 . . Fast Attach 4 | 3 . . . 1 Attach 7 | 4 . . . 3 Detach . | . . . . . Swap 28 | . 20 6 1 1 Drop 18 | . 11 6 1 . Fire 129 | 13 74 35 . 7 Melee . | . . . . . Ram . | . . . . . Kick . | . . . . . Crush 19 | . 8 6 . 5 Escape Stasis . | . . . . . Rewire . | . . . . . Trap 3 | . . 3 . . Miscellaneous . | . . . . . Route ------- -11/Scrapyard -10/Materials (discovered 5 exits: *Mat x3 / [*Min x2]) -10/Mines (discovered 3 exits: Mat / *Exi / Sub) -10/Exiles -9/Mines History --------- Turn | Location | Event 9 | -11/Scrapyard | Discovered new exit (range 14) 101 | -11/Scrapyard | Entered Materials 148 | -10/Materials | Discovered new exit (range 15) 308 | -10/Materials | Build established: Mutant 397 | -10/Materials | Discovered new exit (range 4) 536 | -10/Materials | Discovered new exit (range 12) 727 | -10/Materials | Discovered new exit (range 10) 1226 | -10/Materials | Learned Storage stockpile data 1258 | -10/Materials | Learned location of 2 exits from Mines 1279 | -10/Materials | Loaded intel: 13 trap records 1293 | -10/Materials | Learned location of Mines (-10) 1302 | -10/Materials | Learned Storage security intel 1421 | -10/Materials | Discovered new exit (range 14) 1817 | -10/Materials | Entered Mines 1818 | -10/Mines | Identified exit to Subcaves 1818 | -10/Mines | Identified exit to Materials 1821 | -10/Mines | Met a Derelict bent on vengeance 1827 | -10/Mines | Learned Materials emergency access door positions 1947 | -10/Mines | Found a hidden stash of uninstalled traps 2224 | -10/Mines | Deemed a non-threat by the Exiles lab entrance 2224 | -10/Mines | Discovered new exit (range 5) 2434 | -10/Mines | Met a Derelict testing a Signal Generator 2905 | -10/Mines | Entered Exiles 2905 | -10/Exiles | Found Exiles lab abandoned 2905 | -10/Exiles | Accompanied by 1 ally 3561 | -10/Exiles | Discovered new exit (range 10) 3575 | -10/Exiles | Entered Mines 3575 | -9/Mines | Accompanied by 1 ally 3576 | -9/Mines | Assembled infested the area 3578 | -9/Mines | Core integrity fell below 50% 3621 | -9/Mines | Core integrity fell below 20% 3625 | -9/Mines | Destroyed by D-53 Grenadier with Mini Grenade Launcher Last Messages --------------- 03616_ Acquired 2 matter. 03616_ Lgt. Treads destroyed. 03617_ Critical hit (Burn: +80). 03618_ as-92687 destroyed. 03618_ Seismic Detector destroyed. 03618_ Beamcaster destroyed. 03618_ as-21829 destroyed. 03619_ R-06 Scavenger collects Lgt. Ion Engine. 03619_ as-51420 destroyed. 03619_ as-82521 destroyed. 03620_ Lgt. Ion Engine destroyed. 03620_ as-56263 destroyed. 03620_ as-18869 destroyed. 03621_ as-02124 destroyed. 03622_ as-30704 destroyed. 03622_ as-04543 destroyed. 03622_ Slammed into as-38765. 03623_ R-06 Scavenger collects Seismic Detector. 03623_ as-95960 destroyed. 03625_ Lgt. Treads destroyed. Map ----- +----------------------------------------------------+ | ?????????????????????????????????????????????????? | | ?????????????????????????????????????????????????? | | ?????????????????????????????????????????????????? | | ?????????????????????????????????????????????????? | | ?????????????????????????????????????????????????? | | ?????????????????????????????????????????????????? | | ?????????????????????????????????????????????????? | | ?????????????????????????????????????????????????? | | ?????????????????????????????????????????????????? | | ???????????????????##????????????????????????????? | | ??????????????????? ????????????????????????????? | | ???????????????????# ????????????????????????????? | | ???????????????????# ????????????????????????????? | | ?????????????????### #???????????????????????????? | | ???????????????### ##??????????????????????????? | | ???????????????? %"??????????????????????????? | | ????????????????? %r#??????????????????????????? | | ?????????????????# ###????????????????????????? | | ?????????????????# =| #????????????????????????? | | ????????????????## = ##???????????????????????? | | ???????????????## #???????????????????????? | | ???????????????# dd ##??????????????????????? | | ???????????????# ##?????????????????????? | | ????????????????# a ##????????????????????? | | ????????????????# #????????????????????? | | ????????????????# a @ ##????????????????????? | | ????????????????# %=#?????????????????????? | | ????????????????# ## [ #????????????????????? | | ????????????????# [ ! ar ????????????????? | | ???????????????# a a %= ##### ""????????????? | | ?????????????# ## ! ##????????????????????? | | ????????????# < ?###=####?????????????????????? | | ????????????# ???# #????????????????????????? | | ????????????# ????# #????????????????????????? | | ????????????? ???? #????????????????????????? | | ????????????? ?????##?????????????????????????? | | ?????????????????????????????????????????????????? | | ?????????????????????????????????????????????????? | | ?????????????????????????????????????????????????? | | ?????????????????????????????????????????????????? | | ?????????????????????????????????????????????????? | | ?????????????????????????????????????????????????? | | | | | | | | | | | | | | | | | +----------------------------------------------------+ Best States ------------- Heat Dissipation 25 Energy Generation 10 Energy Capacity 250 Matter Stores 300 Matter Capacity 300 Sight Range 16 Terrain Scan Density 10 Evasion (%) 50 Recoil Reduction 2 Item Schematics ----------------- None Robot Schematics ------------------ None Fabricated ------------ Nothing Repaired ---------- Nothing Studied --------- None Alien Tech Used ----------------- None Achievements -------------- None Challenges ------------ None Game ------ Seed WeaponsEnergyArchive Manual? 0 Play Time 00:19:35 Cumulative 863.5 hours Start 2026.09.17 @ 17:00:46 End 2026.09.17 @ 17:19:46 Sessions 1 Manual Loads 0 Difficulty Rogue Special Mode None Game No. 473 Rogue 473 Adventurer 0 Explorer 0 Win Type - Total 50 Types 22/5/8/2/1/2/6/2/1/1 Lore% 95 Gallery% 90 Achievement% 84 Wizard Run 0 Options --------- Layout 1 ASCII 0 Keyboard 0 Movement Numpad Keybinds 0 Fullscreen 2 Font 24/Smallcaps Map View 50x35 Zoom Use 0% Tactical HUD 1 Map Filters NONE Filters NONE Steam 1 RUN: be1aec0a-0188-45c8-ad3c-19fd0d170093